bitfinex/quotes_ETHUSD_20250605
["timestamp","ask_amount","ask_price","bid_price","bid_amount"]
[1749131192268,3.84113082,2603.4,2603.3,8.966]
[1749131192661,3.8410484,2603.5,2603.3,8.964]
[1749131192872,3.84063332,2603.8,2603.3,9.8604]
[1749131193068,3.8398421,2604.3,2603.4,0.21346325]
[1749131193376,3.84083576,2603.6,2603.5,2.23146325]
[1749131193534,1.8939,2603.7,2603.5,2.018]
[1749131193732,3.84196507,2602.9,2602.6,8.288]
[1749131193961,3.84083576,2603.6,2602.7,2.018]
[1749131194147,20.39083576,2603.6,2602.7,8.976]
[1749131194361,3.84180007,2603.0,2602.7,8.976]
[1749131194876,3.84186868,2602.9,2602.8,8.976]
[1749131195182,3.84147232,2603.2,2602.8,9.545492]
[1749131195333,3.84153107,2603.2,2602.9,0.569492]
[1749131195538,1.4066,2604.0,2603.2,3.84140112]
[1749131195787,1.4066,2604.6,2603.3,7.18151025]
[1749131195938,3.84098775,2603.5,2603.4,9.19750218]
[1749131196140,0.55,2604.2,2603.4,9.33983475]
[1749131196339,3.84082099,2603.7,2603.5,0.35583031]
[1749131196538,3.84082099,2603.7,2603.4,8.984]
[1749131196539,3.84079082,2603.7,2603.4,8.984]
[1749131196743,3.8405649,2603.8,2603.5,0.56932382]
[1749131196974,13.95417376,2604.5,2603.6,9.54847241]
[1749131197161,13.95417376,2604.5,2602.9,1.33876489]
[1749131197162,10.11466522,2604.1,2602.9,1.33876489]
[1749131197361,3.84152776,2603.2,2603.0,9.55476165]
[1749131197563,3.8415735,2603.1,2603.0,2.018]
[1749131197765,3.84149099,2603.2,2603.0,8.985]
[1749131197951,3.84148621,2603.2,2603.0,8.985]
[1749131198158,16.0,2603.9,2603.1,0.21368508]
[1749131198391,3.84142593,2603.2,2603.1,0.35613195]
[1749131198569,3.84142593,2603.2,2603.1,9.55681943]
[1749131198771,3.84142593,2603.2,2603.1,2.58781943]
[1749131199003,3.84142593,2603.2,2603.1,9.34116376]
[1749131199321,3.84142593,2603.2,2603.1,8.985]
[1749131200168,3.84142593,2603.2,2603.1,8.986]
[1749131200369,3.84142593,2603.2,2603.1,9.34226801]
[1749131200882,3.8421639,2602.7,2602.6,8.288]
[1749131201102,3.8421639,2602.7,2602.6,17.274]
[1749131201503,3.84209862,2602.8,2602.6,17.63046645]
[1749131201708,3.84197403,2602.9,2602.7,0.57158093]
[1749131201876,3.84197403,2602.9,2602.8,0.57158093]
[1749131202072,3.84179632,2603.0,2602.8,0.57156596]
[1749131202392,3.84203578,2602.8,2602.6,17.274]
[1749131202608,3.8421639,2602.7,2602.6,10.306]
[1749131202811,4.61058427,2602.7,2602.6,8.288]
[1749131203012,4.61058427,2602.7,2602.6,10.306]
[1749131203524,4.61058427,2602.7,2602.6,17.266]
[1749131203723,4.61058427,2602.7,2602.6,8.50237864]
[1749131203941,4.61058427,2602.7,2602.6,17.83367678]
[1749131204080,4.61058427,2602.7,2602.6,17.262]
[1749131204276,4.61058427,2602.7,2602.6,17.261]
[1749131204518,4.61058427,2602.7,2602.6,17.61829736]
[1749131204716,3.8421639,2602.7,2602.6,17.83265598]
[1749131204913,3.8421639,2602.7,2602.6,17.83265818]
[1749131205231,3.8421639,2602.7,2602.6,17.83311684]
[1749131205723,3.8421639,2602.7,2602.6,17.82511684]
[1749131205960,3.8421639,2602.7,2602.6,17.8253995]
[1749131206164,3.8421639,2602.7,2602.6,8.288]
[1749131206165,5.16058359,2602.7,2602.6,8.288]
[1749131206461,5.98738359,2602.7,2602.6,17.249]
[1749131206665,5.98738359,2602.7,2602.6,17.46368138]
[1749131206981,4.61058359,2602.7,2602.6,17.82147885]
[1749131207267,13.5756621,2602.7,2602.6,8.86045771]
[1749131207464,13.5756621,2602.7,2602.6,8.288]
[1749131207465,14.9545621,2602.7,2602.6,8.288]
[1749131207764,14.9545621,2602.7,2602.6,17.268]
[1749131207765,4.61058359,2602.7,2602.6,17.268]
[1749131207968,3.8421639,2602.7,2602.6,17.268]
[1749131208661,3.8421639,2602.7,2602.6,8.50260901]
[1749131208837,3.8421639,2602.7,2602.6,17.48161716]
[1749131209043,3.8421639,2602.7,2602.6,17.266]
[1749131209540,3.8421639,2602.7,2602.6,17.265]
[1749131209751,3.84192819,2602.9,2602.6,19.00697245]
[1749131209950,3.84142487,2603.3,2602.7,0.21460396]
[1749131210155,3.84119981,2603.4,2602.8,0.57217172]
[1749131210394,9.86527851,2604.1,2603.0,3.84163573]
[1749131210539,3.84024577,2604.0,2603.1,7.31767273]
[1749131210742,1.4502,2604.1,2603.2,1.47351128]
[1749131210973,3.84091633,2603.6,2603.3,9.21153594]
[1749131211179,8.41507851,2604.3,2603.3,8.997]
[1749131211340,8.41507851,2604.3,2603.4,0.21452152]
[1749131211656,3.84056425,2603.8,2603.5,0.35753474]
[1749131211862,3.84083576,2603.6,2603.5,0.35753474]
[1749131212179,3.84083576,2603.6,2603.5,9.92661536]
[1749131212372,8.41507851,2604.1,2603.5,9.92661623]
[1749131212542,3.84057845,2603.8,2603.6,0.57206546]
[1749131212738,3.84057845,2603.8,2603.7,0.21452557]
[1749131212980,3.8407815,2603.7,2603.5,9.35453474]
[1749131213140,3.84083576,2603.6,2603.5,0.35753474]
[1749131213492,3.84083576,2603.6,2603.5,9.92089944]
[1749131213700,3.84127837,2603.3,2603.2,8.292]
[1749131213994,3.84127837,2603.3,2603.2,17.291]
[1749131214338,3.84127837,2603.3,2603.2,10.31]
[1749131214546,3.84127837,2603.3,2603.2,17.286]
[1749131215244,3.84127837,2603.3,2603.2,17.283]
[1749131215548,3.84127837,2603.3,2603.2,17.281]
[1749131216184,4.60952055,2603.3,2603.2,8.292]
[1749131216346,4.60952055,2603.3,2603.2,17.278]
[1749131217219,6.03882055,2603.3,2603.2,17.305]
[1749131217703,6.03882055,2603.3,2603.2,17.303]
[1749131218083,6.03882055,2603.3,2603.2,17.3]
[1749131218294,6.03882055,2603.3,2603.2,10.338]
[1749131218600,6.03882055,2603.3,2603.2,17.3]
[1749131218811,3.84127837,2603.3,2603.2,17.3]
[1749131219480,3.84127837,2603.3,2603.2,17.297]
[1749131220161,3.84127837,2603.3,2603.2,8.292]
[1749131220366,3.84127837,2603.3,2603.2,17.294]
[1749131220602,3.84127837,2603.3,2602.4,0.15472454]
[1749131220603,3.84245917,2602.5,2602.4,0.15472454]
[1749131220803,12.25753768,2602.5,2602.4,17.45172454]
[1749131220987,12.25753768,2602.5,2602.4,0.15472454]
[1749131221189,13.86752427,2602.5,2602.4,10.49172454]
[1749131221392,14.41752427,2602.5,2602.4,8.44572454]
[1749131221593,14.41752427,2602.5,2602.4,10.49172454]
[1749131221828,12.25753768,2602.5,2602.4,10.49172454]
[1749131222112,12.80753768,2602.5,2602.4,10.49172454]
[1749131222313,14.22903768,2602.5,2602.4,8.44572454]
[1749131222513,14.22903768,2602.5,2602.4,17.46372454]
[1749131224490,14.22903768,2602.5,2602.4,8.44572454]
[1749131224705,16.03617427,2602.5,2602.4,17.45872454]
[1749131225527,16.03617427,2602.5,2602.4,8.44572454]
[1749131225831,5.75760215,2602.2,2602.1,0.02]
[1749131226127,14.17268066,2602.2,2602.1,9.035]
[1749131226303,16.35848678,2602.2,2602.1,9.035]
[1749131226700,0.55,2601.7,2601.5,8.293]
[1749131226909,3.8435715,2601.8,2598.2,1.97723627]
[1749131226910,3.84585801,2600.2,2599.9,0.39016896]
[1749131227110,5.29395801,2600.2,2599.9,0.39016896]
[1749131227310,5.29395801,2600.2,2599.4,2.047]
[1749131227311,15.17300468,2600.2,2599.7,7.06]
[1749131227646,3.84585801,2600.2,2600.1,8.313]
[1749131228141,3.84579306,2600.3,2600.1,17.427]
[1749131228483,0.55,2601.3,2600.1,8.313]
[1749131228588,8.41507851,2601.3,2600.2,9.115]
[1749131228904,3.84508657,2600.8,2600.3,2.047]
[1749131229097,3.84556222,2600.4,2600.3,2.047]
[1749131229442,3.84556222,2600.4,2600.3,9.122]
[1749131229646,3.84585801,2600.2,2600.1,0.02]
[1749131229796,12.26093652,2600.2,2600.1,0.02]
[1749131229999,3.84726071,2599.3,2598.7,3.84806854]
[1749131230189,3.84699446,2599.5,2598.8,3.84792981]
[1749131230401,0.55,2600.4,2599.1,16.0]
[1749131230633,3.84665852,2599.7,2599.0,16.0]
[1749131230792,8.41507851,2600.2,2599.0,0.38271888]
[1749131230993,3.8466758,2599.7,2599.1,3.84746025]
[1749131231194,3.84561623,2600.4,2597.6,3.84965698]
[1749131231195,1.3948,2599.8,2597.6,3.84965698]
[1749131231497,0.55,2600.1,2598.6,3.84812335]
[1749131231819,0.5,2599.5,2598.0,0.67681503]
[1749131232030,3.84723447,2599.3,2598.7,3.84797775]
[1749131232227,0.55,2600.1,2598.8,7.076]
[1749131232407,3.8464586,2599.8,2599.2,3.84725903]
[1749131232741,3.8464586,2599.8,2599.0,29.717532]
[1749131232742,0.02,2599.9,2599.1,19.84738741]
[1749131233031,0.02,2599.9,2599.5,3.8467852]
[1749131233231,0.02,2599.9,2599.6,7.077]
[1749131233405,0.02,2599.9,2599.7,7.081]
[1749131233732,3.84644972,2599.8,2599.7,7.081]
[1749131234037,3.84644972,2599.8,2599.3,3.84717863]
[1749131234331,3.84651769,2599.8,2599.5,16.0]
[1749131234497,0.02,2599.9,2599.5,16.0]
[1749131235196,0.02,2599.9,2599.4,19.84691864]
[1749131235397,0.02,2599.9,2599.5,7.072]
[1749131235637,0.02,2599.9,2599.6,16.0]
[1749131235794,0.02,2599.9,2599.5,16.0]
[1749131236018,0.02,2599.9,2599.7,7.071]
[1749131236222,0.02,2599.9,2599.8,3.84644972]
[1749131236432,0.02,2599.9,2599.8,30.19344972]
[1749131236838,0.52,2599.9,2599.8,53.86899772]
[1749131237162,0.52,2599.9,2599.8,31.53633272]
[1749131237320,0.52,2599.9,2599.8,33.418]
[1749131237523,0.52,2599.9,2599.8,37.26444972]
[1749131237724,0.52,2599.9,2599.8,33.418]
[1749131237967,0.52,2599.9,2599.8,10.347]
[1749131238123,0.52,2599.9,2599.8,17.415]
[1749131238327,0.52,2599.9,2599.8,23.38762166]
[1749131238646,0.52,2599.9,2599.8,39.38762166]
[1749131238847,0.52,2599.9,2599.8,45.34383066]
[1749131239057,0.52,2599.9,2599.8,30.27162166]
[1749131239261,0.52,2599.9,2599.8,42.41073466]
[1749131239581,0.52,2599.9,2599.8,33.29573466]
[1749131239787,0.02,2599.9,2599.8,42.40957866]
[1749131240187,0.02,2599.9,2599.8,42.40557866]
[1749131240383,0.02,2599.9,2599.8,41.40991766]
[1749131240883,0.02,2599.9,2599.8,41.40591766]
[1749131241066,0.02,2599.9,2599.8,34.35191766]
[1749131241383,0.02,2599.9,2599.8,17.4]
[1749131241590,0.02,2599.9,2599.1,30.0]
[1749131241796,3.86631692,2599.9,2599.8,8.299]
[1749131242086,4.77225603,2599.9,2599.8,8.299]
[1749131242487,4.77225603,2599.9,2599.8,15.426]
[1749131242985,4.77225603,2599.9,2599.8,17.566]
[1749131243194,0.02,2599.9,2599.8,17.566]
[1749131243525,3.86630178,2599.9,2599.8,8.299]
[1749131243684,3.86630178,2599.9,2599.8,17.562]
[1749131243854,3.86630178,2599.9,2599.8,8.299]
[1749131244058,3.86630178,2599.9,2599.8,17.568]
[1749131244396,0.02,2599.9,2599.8,17.568]
[1749131244536,3.86630178,2599.9,2599.8,8.299]
[1749131244741,3.86630178,2599.9,2599.8,10.442]
[1749131244936,4.63754875,2599.9,2599.8,10.442]
[1749131245142,5.18754875,2599.9,2599.8,17.563]
[1749131245475,6.61604875,2599.9,2599.8,17.563]
[1749131246091,6.61604875,2599.9,2599.8,8.299]
[1749131246493,6.06604875,2599.9,2599.8,17.557]
[1749131246649,5.29480178,2599.9,2599.8,17.557]
[1749131246987,5.84480178,2599.9,2599.8,8.299]
[1749131247154,5.84480178,2599.9,2599.8,17.552]
[1749131247358,5.84480178,2599.9,2599.8,17.55]
[1749131247554,5.84480178,2599.9,2599.8,8.299]
[1749131247760,0.55,2598.8,2597.8,2.143]
[1749131247999,5.14426286,2597.9,2597.8,2.143]
[1749131248292,3.84926286,2597.9,2597.8,2.143]
[1749131249043,3.84926286,2597.9,2597.8,9.336]
[1749131249244,3.84926286,2597.9,2597.8,2.143]
[1749131249447,3.84926286,2597.9,2597.8,9.335]
[1749131249692,3.84926286,2597.9,2597.8,2.143]
[1749131249893,3.84915896,2598.0,2597.8,9.341]
[1749131250101,10.13200838,2599.1,2597.8,10.2751]
[1749131250265,3.84912401,2598.0,2597.9,7.2]
[1749131250595,3.84875937,2598.3,2597.9,7.197]
[1749131250807,3.84760498,2599.1,2598.0,26.0]
[1749131251142,1.2935,2599.4,2597.8,2.143]
[1749131251335,3.84801881,2598.8,2598.1,16.0]
[1749131251542,3.84819408,2598.7,2598.1,5.8729036]
[1749131251840,1.2935,2599.4,2598.2,9.351]
[1749131252339,3.84743126,2599.2,2598.3,16.0]
[1749131252522,3.84778813,2598.9,2598.5,16.0]
[1749131252719,3.84762425,2599.1,2598.6,17.65]
[1749131252936,3.84745701,2599.2,2598.6,19.79982898]
[1749131253108,3.8475184,2599.1,2598.6,23.64796367]
[1749131253312,3.84792981,2598.8,2598.7,9.348]
[1749131253595,3.84807788,2598.7,2598.6,8.303]
[1749131253845,3.84807788,2598.7,2598.6,17.86588604]
[1749131253988,3.84797611,2598.8,2598.6,8.51688604]
[1749131254192,3.84807788,2598.7,2598.6,8.303]
[1749131254395,3.84807788,2598.7,2598.6,17.86054097]
[1749131254707,3.84807788,2598.7,2598.6,17.8604913]
[1749131254890,3.84807788,2598.7,2598.6,17.646]
[1749131255089,3.84807788,2598.7,2598.6,17.642]
[1749131255290,3.84689363,2599.5,2598.6,17.642]
[1749131255291,0.55,2599.5,2598.6,17.642]
[1749131255546,3.84807788,2598.7,2598.6,17.642]
[1749131255691,0.43967456,2599.4,2598.6,17.85648555]
[1749131256043,8.45771321,2599.9,2598.7,0.21448555]
[1749131256187,3.8474292,2599.2,2598.8,0.21445397]
[1749131256546,3.84683727,2599.6,2598.9,9.336]
[1749131256841,3.84748871,2599.1,2598.9,9.336]
[1749131257055,3.84725363,2599.3,2599.0,0.2144531]
[1749131257188,3.84725363,2599.3,2599.1,0.21444544]
[1749131257392,3.84725363,2599.3,2598.9,9.336]
[1749131257393,3.84725363,2599.3,2599.2,0.21444072]
[1749131257834,3.84725363,2599.3,2599.2,9.33]
[1749131258035,0.02,2599.9,2599.2,0.933]
[1749131258238,0.02,2599.9,2599.4,3.84702996]
[1749131258448,0.02,2599.9,2599.4,30.0]
[1749131258651,0.02,2599.9,2599.8,3.84644972]
[1749131258851,0.02,2599.9,2599.8,45.40817672]
[1749131259053,0.02,2600.9,2600.1,16.0]
[1749131259255,0.02,2600.9,2600.3,16.0]
[1749131259612,0.02,2600.9,2600.5,16.0]
[1749131259851,0.02,2600.9,2600.0,0.51]
[1749131260057,3.84600592,2600.1,2600.0,0.51]
[1749131260348,3.84600592,2600.1,2600.0,0.3814056]
[1749131260525,3.84626214,2600.0,2599.1,3.84748566]
[1749131260725,0.57,2600.9,2599.3,17.612505]
[1749131260959,3.8460915,2600.1,2599.6,14.247961]
[1749131261172,0.55,2600.7,2599.4,3.84698609]
[1749131261371,0.02,2600.9,2599.7,11.06548974]
[1749131261675,3.84511862,2600.7,2599.8,17.10654897]
[1749131261980,3.84625411,2600.0,2599.6,16.0]
[1749131262131,3.84576325,2600.3,2599.7,7.218]
[1749131262332,3.84598198,2600.2,2599.8,16.0]
[1749131262568,3.84611624,2600.1,2599.5,3.84682872]
[1749131262771,3.84511862,2600.7,2599.9,7.217]
[1749131263030,3.84598839,2600.2,2600.0,7.217]
[1749131263235,3.84567917,2600.4,2600.0,7.59832418]
[1749131263458,0.54201616,2600.9,2600.1,26.0]
[1749131263649,0.54201616,2600.9,2600.1,19.84596538]
[1749131263650,3.84520552,2600.7,2600.1,19.84596538]
[1749131263847,0.02,2600.9,2600.3,16.0]
[1749131264141,0.02,2600.9,2600.8,3.84497077]
[1749131264337,0.02,2600.9,2600.8,23.22]
[1749131264561,0.02,2600.9,2600.8,31.11565777]
[1749131264869,0.02,2600.9,2600.8,19.49607602]
[1749131265038,0.02,2600.9,2600.8,23.221]
[1749131265234,0.02,2600.9,2600.8,36.25802577]
[1749131265452,0.35663912,2601.5,2601.2,3.84427829]
[1749131265654,0.59439853,2601.8,2601.4,3.84397561]
[1749131265849,4.43800308,2601.8,2601.5,7.217]
[1749131266048,4.88378116,2601.8,2601.6,7.214]
[1749131266281,3.84364069,2601.7,2601.6,7.214]
[1749131266484,3.84364069,2601.7,2601.6,8.69062386]
[1749131266693,3.84364069,2601.7,2601.6,8.301]
[1749131266878,3.84364069,2601.7,2601.6,17.653]
[1749131267771,0.02,2601.9,2601.6,17.653]
[1749131268075,3.84349665,2601.8,2601.6,10.82178913]
[1749131268270,3.84349665,2601.8,2601.7,10.443]
[1749131268472,0.02,2601.9,2601.7,10.443]
[1749131268707,3.84349296,2601.8,2601.7,10.443]
[1749131268872,3.84349296,2601.8,2601.7,8.3]
[1749131269214,3.84349296,2601.8,2601.7,10.443]
[1749131269420,0.02,2601.9,2601.7,10.443]
[1749131269621,3.86342216,2601.9,2601.8,9.338]
[1749131270376,0.02,2601.9,2601.8,9.338]
[1749131271122,0.02,2601.9,2601.3,3.8442165]
[1749131271123,3.84379817,2601.6,2601.3,16.0]
[1749131271324,0.02,2601.9,2601.3,18.89688724]
[1749131271493,3.84349296,2601.8,2601.4,9.328]
[1749131271826,0.02,2601.9,2601.2,9.466697]
[1749131271990,0.02,2601.9,2601.1,0.37592771]
[1749131271991,3.84364818,2601.7,2601.1,4.22034766]
[1749131272178,3.84377231,2601.7,2601.2,3.84437911]
[1749131272374,3.84385773,2601.6,2600.9,5.90089077]
[1749131272599,3.84385773,2601.6,2601.1,3.84444939]
[1749131272912,0.02,2601.9,2601.2,7.175]
[1749131273092,3.84349296,2601.8,2601.3,11.01912993]
[1749131273422,0.02,2601.9,2600.0,3.84602117]
[1749131273624,3.8440611,2601.5,2601.0,3.84467267]
[1749131273851,3.84415312,2601.4,2600.9,3.84480545]
[1749131274047,3.84354798,2601.8,2601.0,11.01258476]
[1749131274349,3.84371039,2601.7,2601.0,11.01264466]
[1749131274508,3.84351268,2601.8,2601.1,26.873952]
[1749131274710,3.84387478,2601.6,2601.2,10.0]
[1749131274912,0.02,2601.9,2601.3,7.166]
[1749131275114,3.86343203,2601.9,2601.3,7.166]
[1749131275313,3.86343203,2601.9,2600.9,16.0]
[1749131275314,3.84393619,2601.5,2601.4,7.169]
[1749131275516,3.84393619,2601.5,2601.4,7.17]
[1749131275746,3.84411751,2601.4,2600.9,3.84474694]
[1749131275947,3.84411751,2601.4,2601.0,7.166]
[1749131276247,3.84382375,2601.6,2601.1,3.84451621]
[1749131276452,3.84382375,2601.6,2600.9,3.84480543]
[1749131276453,3.8439543,2601.5,2601.2,17.639]
[1749131276653,3.84423173,2601.3,2601.2,8.297]
[1749131276833,3.84415203,2601.4,2601.2,17.637]
[1749131277561,3.84423173,2601.3,2601.2,8.297]
[1749131277765,3.84409731,2601.4,2601.2,10.477]
[1749131277966,4.36550146,2601.3,2601.2,10.477]
[1749131278342,4.36550146,2601.3,2601.2,17.629]
[1749131278664,3.84423173,2601.3,2601.2,8.297]
[1749131279033,3.84423173,2601.3,2601.2,17.631]
[1749131279253,3.84423173,2601.3,2601.2,10.477]
[1749131279465,3.84423173,2601.3,2601.2,17.63]
[1749131279636,4.74992463,2601.3,2601.2,10.477]
[1749131279842,3.84525052,2600.7,2600.2,3.84584148]
[1749131280051,3.84468869,2601.0,2600.3,2.18]
[1749131280251,3.84468869,2601.0,2599.2,10.0]
[1749131280453,0.9056929,2601.3,2599.3,2.18]
[1749131280454,3.84652798,2599.8,2599.3,2.18]
[1749131280655,3.84542496,2600.5,2599.4,0.218]
[1749131280874,3.84668763,2599.7,2599.4,0.218]
[1749131281049,3.84659751,2599.8,2599.5,7.147]
[1749131281376,3.84659751,2599.8,2598.9,10.0]
[1749131281377,8.43221206,2599.9,2598.3,18.253541]
[1749131281579,3.84801504,2598.8,2598.4,1.8253541]
[1749131281874,3.84704162,2599.4,2598.4,3.84852192]
[1749131282053,1.3465,2599.5,2598.3,10.39201976]
[1749131282248,3.84731086,2599.3,2598.3,0.39201976]
[1749131282462,1.3349,2599.9,2598.6,16.0]
[1749131282666,3.84716145,2599.4,2598.6,3.84821752]
[1749131282977,8.43221206,2599.8,2598.7,7.53582175]
[1749131283178,3.84659768,2599.7,2598.9,3.84769235]
[1749131283390,3.84648089,2599.8,2599.0,3.84755829]
[1749131283548,1.3349,2599.9,2598.8,19.84787665]
[1749131283760,3.84687852,2599.6,2599.0,3.8475545]
[1749131283995,3.84664873,2599.7,2599.1,0.38475545]
[1749131284161,3.84664873,2599.7,2599.1,5.607723]
[1749131284343,3.84685603,2599.6,2598.9,16.0]
[1749131284547,3.84666978,2599.7,2599.2,7.143]
[1749131284841,1.3349,2599.9,2599.3,7.141]
[1749131285053,3.84675517,2599.6,2599.3,7.141]
[1749131285282,3.84675394,2599.6,2599.3,8.239846]
[1749131285483,3.84613509,2600.1,2599.4,7.135]
[1749131285655,1.3642,2600.5,2599.4,7.135]
[1749131285990,3.84578439,2600.3,2599.3,1.098846]
[1749131286211,3.84556222,2600.4,2599.4,10.98395653]
[1749131286376,3.84556222,2600.4,2599.5,10.481]
[1749131286689,3.84657705,2599.8,2599.6,7.138]
[1749131286989,3.8465676,2599.8,2599.6,7.138]
[1749131287191,0.55,2600.4,2599.7,9.315]
[1749131287358,3.84637737,2599.9,2599.7,9.315]
[1749131287559,3.84644972,2599.8,2599.7,9.315]
[1749131287996,3.84644972,2599.8,2599.7,9.308]
[1749131288166,3.84659746,2599.8,2599.7,9.307]
[1749131288755,3.84674565,2599.6,2598.6,3.84819978]
[1749131288959,3.84778175,2598.9,2598.8,17.61]
[1749131289192,3.84659768,2599.7,2598.8,17.99382727]
[1749131289367,1.4256,2599.8,2598.8,17.99382727]
[1749131289572,3.8466756,2599.7,2598.9,16.0]
[1749131289761,3.84671519,2599.7,2599.1,3.84740141]
[1749131289959,3.84637166,2599.9,2599.3,3.84706132]
[1749131290159,3.84615169,2600.1,2599.4,7.13]
[1749131290416,1.3604,2600.3,2599.2,0.38474014]
[1749131290709,3.8469685,2599.5,2599.3,2.181]
[1749131290859,3.8469685,2599.5,2599.3,9.307]
[1749131291187,3.84689363,2599.5,2598.9,16.0]
[1749131291499,3.84704162,2599.4,2599.0,10.481]
[1749131291675,3.84743138,2599.2,2599.1,17.608]
[1749131291873,3.84743138,2599.2,2599.1,10.481]
[1749131292203,3.84743138,2599.2,2599.1,17.605]
[1749131292406,3.84743138,2599.2,2599.1,8.3]
[1749131292703,3.84778175,2598.9,2598.8,0.38651836]
[1749131292902,3.84778175,2598.9,2598.8,17.99051836]
[1749131293196,3.84769735,2599.0,2598.8,17.99540161]
[1749131293397,3.84778175,2598.9,2598.8,17.99540161]
[1749131293601,3.84889901,2598.2,2597.7,3.84952287]
[1749131293799,3.84874356,2598.3,2597.9,4.2499]
[1749131294100,3.84850238,2598.5,2597.9,19.84916629]
[1749131294286,3.84795179,2598.8,2597.9,16.0]
[1749131294487,3.84858001,2598.4,2597.9,16.0]
[1749131294691,3.84837406,2598.5,2598.0,3.36]
[1749131294889,5.14340956,2598.9,2598.0,3.36]
[1749131294890,3.8485426,2598.4,2598.0,3.36]
[1749131295200,3.84792981,2598.8,2598.0,3.36]
[1749131295399,3.84870099,2598.3,2597.4,6.747553]
[1749131295701,5.14351145,2598.9,2597.9,13.84924881]
[1749131295702,3.84860127,2598.4,2597.9,13.84924881]
[1749131295902,1.2956,2598.9,2597.9,30.0]
[1749131296199,3.84786801,2598.9,2598.0,30.0]
[1749131296411,1.318,2599.2,2598.1,8.302]
[1749131296710,3.84856832,2598.4,2598.2,9.286]
[1749131296871,3.84773694,2599.0,2598.2,9.286]
[1749131297070,1.318,2599.2,2598.2,9.286]
[1749131297272,3.84852216,2598.4,2598.3,9.287]
[1749131297577,3.84845535,2598.5,2598.3,9.286]
[1749131297984,3.84851764,2598.5,2598.3,9.286]
[1749131298188,3.84837406,2598.5,2598.4,9.282]
[1749131298872,3.84881841,2598.2,2598.1,8.302]
[1749131299071,3.84881841,2598.2,2598.1,10.483]
[1749131299272,3.84881841,2598.2,2598.1,8.302]
[1749131299499,3.84881841,2598.2,2598.1,17.579]
[1749131299500,4.61856969,2598.2,2598.1,17.579]
[1749131299697,3.84881841,2598.2,2598.1,17.579]
[1749131300399,3.84881841,2598.2,2598.1,10.483]
[1749131300611,3.84881841,2598.2,2598.1,17.572]
[1749131300826,3.85000385,2597.4,2597.3,3.70894197]
[1749131300982,3.84997392,2597.5,2597.3,21.28394197]
[1749131301181,3.84939161,2597.9,2597.3,21.28394197]
[1749131301486,3.84985936,2597.5,2597.3,21.28394197]
[1749131301821,3.85000385,2597.4,2597.3,12.01394197]
[1749131302117,1.3839,2597.8,2597.3,17.518]
[1749131302315,1.3839,2598.1,2597.3,19.65756442]
[1749131302515,3.84938265,2597.9,2597.4,3.8499915]
[1749131302813,4.39800775,2598.8,2597.5,3.84980425]
[1749131302814,3.84915433,2598.0,2597.5,3.84980425]
[1749131303113,1.3751,2598.4,2597.6,9.217]
[1749131303416,3.84867028,2598.3,2597.6,10.33557568]
[1749131303610,1.3751,2598.4,2597.6,9.217]
[1749131303859,3.84913597,2598.0,2597.7,2.118]
[1749131304007,5.22368519,2598.4,2597.7,9.214]
[1749131304206,1.3751,2598.4,2597.7,9.214]
[1749131304703,1.3751,2598.4,2597.6,16.0]
[1749131304704,3.84874853,2598.3,2597.6,16.0]
[1749131304899,1.3358,2598.8,2597.7,13.06151173]
[1749131305103,1.3358,2598.8,2597.8,3.84941104]
[1749131305306,3.84682216,2599.6,2598.2,3.84874914]
[1749131305307,1.3358,2599.1,2598.2,3.84874914]
[1749131305542,3.84851555,2598.5,2598.1,16.0]
[1749131305741,3.84803391,2598.8,2598.2,9.219]
[1749131305915,3.84801378,2598.8,2598.3,5.15544603]
[1749131306117,3.847864,2598.9,2598.4,3.84852216]
[1749131306327,5.15536893,2599.7,2598.7,3.84798418]
[1749131306527,3.84742544,2599.2,2598.8,8.305]
[1749131306754,3.84759589,2599.1,2598.9,9.219]
[1749131306954,3.84745999,2599.2,2598.9,9.219]
[1749131307157,3.84778175,2598.9,2598.8,8.305]
[1749131307455,3.84778175,2598.9,2598.8,17.526]
[1749131307456,12.28654069,2598.9,2598.8,17.526]
[1749131307618,3.84778175,2598.9,2598.8,17.526]
[1749131308361,3.84807788,2598.7,2598.6,8.305]
[1749131308533,12.28683682,2598.7,2598.6,10.424]
[1749131308732,14.04321538,2598.7,2598.6,10.424]
[1749131309562,5.60445644,2598.7,2598.6,10.424]
[1749131309714,3.84807788,2598.7,2598.6,10.424]
[1749131309921,5.18764972,2599.8,2598.6,10.424]
[1749131310223,1.3412,2599.8,2598.9,3.84770915]
[1749131310524,0.02,2599.9,2599.3,30.0]
[1749131310721,0.02,2599.9,2599.8,19.84644972]
[1749131310962,0.02,2600.9,2599.8,23.125]
[1749131311118,0.02,2600.9,2599.9,17.721433]
[1749131311362,8.45875894,2600.9,2599.5,3.84681758]
[1749131311566,3.84563786,2600.4,2599.9,16.0]
[1749131311777,8.45875894,2600.9,2600.0,2.119]
[1749131311991,3.84585852,2600.2,2599.2,7.838286]
[1749131312191,3.84615384,2600.0,2599.5,16.0]
[1749131312504,3.84606587,2600.1,2599.6,3.84674497]
[1749131312680,3.84601774,2600.1,2599.6,13.84674497]
[1749131312882,3.84575898,2600.3,2599.6,13.84674497]
[1749131312883,3.84593034,2600.2,2599.6,13.84674497]
[1749131313084,3.84529341,2600.6,2599.7,8.538479]
[1749131313278,3.84535683,2600.6,2599.8,9.235]
[1749131313601,3.84535683,2600.6,2599.2,0.3814675]
[1749131313602,3.84563049,2600.4,2599.4,3.84704162]
[1749131313804,3.84563049,2600.4,2599.8,3.84632785]
[1749131314100,5.07535939,2600.8,2599.9,3.84630178]
[1749131314308,3.84542245,2600.5,2600.0,7.112]
[1749131314471,0.02,2600.9,2600.0,7.112]
[1749131314671,3.84550206,2600.5,2600.0,7.112]
[1749131315002,3.84583161,2600.3,2599.7,5.745298]